bitfinex-derivatives/quotes_ETHF0:USTF0_20250314
["timestamp","ask_amount","ask_price","bid_price","bid_amount"]
[1741990633134,1.03804,1926.7,1926.6,2.40923]
[1741990633435,2.49021,1926.8,1926.7,1.03802]
[1741990633627,2.49021,1926.8,1926.6,2.40923]
[1741990633830,1.4522,1926.8,1926.7,1.03802]
[1741990634128,1.03802,1926.7,1926.6,1.03804]
[1741990634333,1.03802,1926.7,1926.6,2.40924]
[1741990634532,2.4902,1926.8,1926.7,1.03802]
[1741990634937,1.4522,1926.8,1926.7,1.03802]
[1741990635137,2.49016,1926.8,1926.7,1.03802]
[1741990635431,1.4522,1926.8,1926.7,1.03802]
[1741990635634,1.4171,1927.0,1926.9,1.03791]
[1741990635838,1.4171,1927.2,1927.1,1.03775]
[1741990636035,1.4171,1927.2,1927.1,1.0378]
[1741990636536,2.45487,1927.2,1927.0,3.86961849]
[1741990636728,1.0378,1927.1,1927.0,0.72699849]
[1741990637441,1.4171,1927.2,1927.0,1.76481849]
[1741990637631,1.0378,1927.1,1927.0,0.72699849]
[1741990637939,2.45488,1927.2,1927.0,1.76484849]
[1741990638335,1.0378,1927.1,1927.0,0.72699849]
[1741990638527,1.0378,1927.1,1927.0,3.36179849]
[1741990638734,1.4171,1927.2,1927.0,3.36179849]
[1741990638935,2.45488,1927.2,1927.0,4.39964849]
[1741990639235,1.4171,1927.2,1927.1,1.0378]
[1741990639536,3.2078,1927.5,1927.0,4.08959849]
[1741990639833,5.60259,1927.5,1927.3,1.03766]
[1741990640037,2.39479,1927.5,1927.4,6.5618]
[1741990640339,1.3572,1927.5,1927.4,6.5618]
[1741990640534,1.3572,1927.5,1927.4,7.59944]
[1741990640735,0.6946,1927.5,1927.4,7.59944]
[1741990641131,2.079,1927.5,1927.4,7.59944]
[1741990641336,2.42199,1927.5,1927.4,6.5618]
[1741990641941,1.3844,1927.5,1927.1,0.6658]
[1741990642144,1.03771,1927.3,1927.2,3.356]
[1741990642544,2.42521,1927.3,1927.2,3.356]
[1741990642750,2.4252,1927.3,1927.2,3.361]
[1741990643642,2.4252,1927.3,1927.2,6.5688]
[1741990644138,1.3875,1927.3,1927.2,7.60655]
[1741990644342,1.3875,1927.3,1927.2,6.5688]
[1741990644733,2.4252,1927.3,1927.2,6.5688]
[1741990644928,2.0743,1927.3,1927.2,7.60655]
[1741990645135,2.0743,1927.3,1927.2,6.5688]
[1741990645331,3.112,1927.3,1927.2,3.361]
[1741990647150,1.0378,1927.1,1927.0,3.21559849]
[1741990647349,1.0378,1927.1,1927.0,6.58359849]
[1741990647843,2.3733,1927.1,1927.0,6.58359849]
[1741990648147,2.3733,1927.1,1927.0,3.37579849]
[1741990648445,2.3733,1927.1,1927.0,0.00779849]
[1741990648842,7.0433,1927.1,1926.5,3.2078]
[1741990649042,1.03791,1926.9,1926.8,3.2078]
[1741990649250,1.03791,1926.9,1926.6,3.371]
[1741990649251,1.03799,1926.8,1926.6,7.61685]
[1741990649437,2.0001,1926.8,1926.6,7.61685]
[1741990649849,2.0001,1926.8,1926.7,1.03802]
[1741990650052,2.0001,1926.8,1926.6,8.29313]
[1741990650252,1.3355,1926.7,1926.6,8.29313]
[1741990651049,1.04570849,1926.9,1926.6,7.2551]
[1741990651252,0.00779849,1926.9,1926.8,4.24576]
[1741990651753,2.49770849,1926.9,1926.8,4.24576]
[1741990651944,1.45979849,1926.9,1926.8,4.24576]
[1741990652453,2.49770849,1926.9,1926.8,4.24576]
[1741990652944,1.45979849,1926.9,1926.8,4.24576]
[1741990653146,2.49770849,1926.9,1926.8,4.24576]
[1741990653340,1.45979849,1926.9,1926.8,4.24576]
[1741990653846,1.45979849,1926.9,1926.8,4.94226]
[1741990657254,2.49770849,1926.9,1926.8,4.94226]
[1741990657448,1.45979849,1926.9,1926.8,4.94226]
[1741990657654,2.49770849,1926.9,1926.8,4.24576]
[1741990658150,1.45979849,1926.9,1926.8,4.24576]
[1741990658546,2.49770849,1926.9,1926.8,4.24576]
[1741990659147,1.45979849,1926.9,1926.8,4.24576]
[1741990659447,2.49770849,1926.9,1926.8,4.24576]
[1741990660046,2.49770849,1926.9,1926.8,7.62776]
[1741990660357,1.45979849,1926.9,1926.8,7.62776]
[1741990660747,2.49770849,1926.9,1926.8,7.62776]
[1741990661346,2.49770849,1926.9,1926.8,6.5898]
[1741990661559,2.49770849,1926.9,1926.8,6.5878]
[1741990661753,1.03805,1926.7,1926.6,3.2078]
[1741990661956,1.03805,1926.7,1926.6,6.5878]
[1741990662358,1.03807,1926.6,1926.5,2.39670849]
[1741990662551,1.03807,1926.6,1926.5,4.73759849]
[1741990662857,2.42057,1926.6,1926.5,4.73759849]
[1741990663159,2.42057,1926.6,1926.5,3.38679849]
[1741990663750,2.42057,1926.6,1926.5,0.00779849]
[1741990668359,5.62837,1926.6,1926.5,0.00779849]
[1741990668568,1.03834,1926.1,1926.0,3.2078]
[1741990668754,1.03834,1926.1,1926.0,6.5838]
[1741990669156,1.03845,1925.9,1925.8,5.63128]
[1741990669358,1.03845,1925.9,1925.8,3.2078]
[1741990669556,1.0385,1925.8,1925.7,32.158]
[1741990669849,1.0385,1925.8,1925.7,32.16579849]
[1741990671869,1.7042,1925.8,1925.7,32.16579849]
[1741990672057,1.7042,1925.8,1925.7,33.59099849]
[1741990673967,0.6657,1925.8,1925.7,34.62955849]
[1741990674265,1.7042,1925.8,1925.7,34.62955849]
[1741990674565,0.6657,1925.8,1925.7,34.62955849]
[1741990675263,2.0966,1925.8,1925.7,34.62955849]
[1741990675769,1.4309,1925.8,1925.7,34.62955849]
[1741990675964,1.03846,1925.9,1925.8,1.03846]
[1741990676161,2.46936,1925.9,1925.8,5.62366]
[1741990676572,1.4309,1925.9,1925.8,4.5852]
[1741990676761,2.46935,1925.9,1925.8,5.6237]
[1741990677069,2.59557,1926.4,1925.8,4.5852]
[1741990677263,2.773,1926.3,1926.0,3.2078]
[1741990677567,1.4309,1926.2,1926.1,1.3774]
[1741990677767,2.46924,1926.2,1926.1,2.41572]
[1741990678070,2.46924,1926.2,1926.1,1.3774]
[1741990678466,1.4309,1926.2,1926.1,2.41574]
[1741990678769,2.46919,1926.2,1926.1,1.3774]
[1741990678977,2.46919,1926.2,1926.1,2.41574]
[1741990679867,2.46919,1926.2,1926.1,1.3774]
[1741990680067,2.46919,1926.2,1926.1,2.41574]
[1741990680269,2.46919,1926.2,1926.1,1.3774]
[1741990682573,1.4309,1926.2,1926.1,2.41574]
[1741990683070,2.46919,1926.2,1926.1,2.41574]
[1741990683460,2.46919,1926.2,1926.1,1.3774]
[1741990683663,2.46919,1926.2,1926.1,2.41574]
[1741990683869,2.46919,1926.2,1926.1,1.3774]
[1741990684371,2.46919,1926.2,1926.1,2.41574]
[1741990684574,2.46919,1926.2,1926.1,1.3774]
[1741990686477,1.03834,1926.1,1926.0,8.95338]
[1741990686679,2.41284,1926.1,1926.0,7.915]
[1741990688376,2.41284,1926.1,1926.0,8.9534]
[1741990688977,1.3745,1926.1,1926.0,8.9534]
[1741990689276,2.41284,1926.1,1926.0,8.9534]
[1741990690273,1.3745,1926.1,1926.0,8.9534]
[1741990690470,2.41284,1926.1,1926.0,8.9534]
[1741990692277,1.3745,1926.1,1926.0,8.9534]
[1741990692476,2.41284,1926.1,1926.0,8.9534]
[1741990692977,1.3745,1926.1,1926.0,8.9534]
[1741990693172,2.41284,1926.1,1926.0,8.9534]
[1741990694584,1.0385,1925.9,1925.8,3.2078]
[1741990694781,3.97038,1926.1,1925.7,28.78979849]
[1741990694782,1.0385,1925.8,1925.7,28.78979849]
[1741990695077,1.03867,1925.5,1925.4,6.5728]
[1741990695285,1.03872,1925.4,1925.3,1.4251]
[1741990695581,1.03872,1925.4,1925.1,3.2078]
[1741990695582,1.03883,1925.2,1925.1,3.2078]
[1741990695785,1.03883,1925.2,1925.1,3.366]
[1741990696479,2.38853,1925.2,1925.1,3.366]
[1741990697978,1.03888,1925.1,1925.0,0.00779849]
[1741990698182,2.38858,1925.1,1925.0,0.00779849]
[1741990698384,2.38858,1925.1,1924.9,28.791]
[1741990698385,1.03894,1925.0,1924.9,28.791]
[1741990698583,1.03899,1924.9,1924.8,3.369]
[1741990699389,1.3497,1925.0,1924.8,3.369]
[1741990699390,1.3497,1925.0,1924.8,6.5768]
[1741990699584,1.03899,1924.9,1924.8,7.9259]
[1741990699897,1.03899,1924.9,1924.8,4.5569]
[1741990700095,1.03899,1924.9,1924.8,1.3491]
[1741990700285,1.3497,1925.0,1924.9,1.03899]
[1741990700486,1.3497,1925.0,1924.9,4.24679]
[1741990700683,2.38864,1925.0,1924.9,3.2078]
[1741990700887,2.38864,1925.0,1924.9,4.24679]
[1741990701189,2.38864,1925.0,1924.9,5.59589]
[1741990701394,2.38864,1925.0,1924.9,4.5569]
[1741990701788,2.38864,1925.0,1924.9,5.59589]
[1741990701991,2.38864,1925.0,1924.9,4.5569]
[1741990702395,1.3497,1925.0,1924.9,5.59589]
[1741990702699,2.38864,1925.0,1924.9,4.5569]
[1741990705500,1.3497,1925.0,1924.9,5.59589]
[1741990706002,1.74088849,1925.3,1924.9,4.5569]
[1741990706202,1.3972,1925.2,1925.1,4.24664]
[1741990706404,1.3972,1925.2,1925.1,8.98704]
[1741990708095,2.43603,1925.2,1925.1,8.98704]
[1741990709003,1.3972,1925.2,1925.1,8.98704]
[1741990709705,2.43603,1925.2,1925.1,8.98704]
[1741990710008,1.3972,1925.2,1925.1,8.98704]
[1741990710394,1.04659849,1925.3,1925.2,1.03883]
[1741990710606,2.38069849,1925.3,1925.2,2.47163]
[1741990711304,2.38066849,1925.3,1925.2,2.47163]
[1741990711703,2.38066849,1925.3,1925.2,1.4328]
[1741990713905,1.03883,1925.2,1925.1,3.2078]
[1741990714205,2.43283,1925.2,1925.1,6.5838]
[1741990714803,2.43283,1925.2,1925.1,3.2078]
[1741990715105,1.03894,1925.0,1924.9,5.68136]
[1741990715303,1.03894,1925.0,1924.9,6.5838]
[1741990715503,1.03894,1925.0,1924.9,3.2078]
[1741990715701,2.49404,1925.0,1924.9,3.2078]
[1741990716002,1.4551,1925.0,1924.8,1.03902]
[1741990716207,1.03902,1924.9,1924.8,1.03903]
[1741990716500,1.4551,1925.0,1924.7,6.59559849]
[1741990716707,5.974,1925.1,1925.0,1.03894]
[1741990717004,5.974,1925.1,1925.0,4.43394]
[1741990717401,3.2078,1925.8,1925.1,2.59712]
[1741990717603,0.6663,1925.6,1925.5,1.03863]
[1741990717898,1.70493,1925.6,1925.5,3.396]
[1741990719602,1.70493,1925.6,1925.5,4.43467]
[1741990719903,1.70493,1925.6,1925.5,3.396]
[1741990720809,1.70493,1925.6,1925.5,4.43467]
[1741990721001,0.00779849,1925.7,1925.6,1.03861]
[1741990722799,1.03838,1926.1,1926.0,1.0384]
[1741990723196,1.03838,1926.1,1925.9,4.43141]
[1741990723410,1.0384,1926.0,1925.9,4.43141]
[1741990723901,1.0384,1926.0,1925.9,3.393]
[1741990724709,1.0384,1926.0,1925.9,4.43145]
[1741990725012,1.04617849,1926.1,1926.0,1.0384]
[1741990725806,1.0384,1926.0,1925.9,4.43141]
[1741990727605,1.0384,1926.0,1925.9,4.43145]
[1741990727812,0.00779849,1926.1,1926.0,1.0384]
[1741990728115,0.00779849,1926.1,1926.0,4.2462]
[1741990728316,0.00779849,1926.1,1926.0,4.9198]
[1741990729112,3.2078,1926.6,1926.0,3.8814]
[1741990729308,1.03813,1926.5,1926.4,1.03818]
[1741990729813,2.44471,1926.6,1926.4,1.03818]
[1741990730008,1.03811,1926.6,1926.5,1.03813]
[1741990730205,1.03811,1926.6,1926.4,1.03814]
[1741990730400,1.03811,1926.6,1926.4,1.03813]
[1741990730612,1.03813,1926.5,1926.3,6.6028]
[1741990730812,1.03813,1926.5,1926.3,7.641]
[1741990731215,1.03813,1926.5,1926.4,2.48258]
[1741990732117,0.73419849,1926.7,1926.6,1.03807]
[1741990732318,2.09239849,1926.7,1926.6,4.43007]
[1741990732813,2.09239849,1926.7,1926.6,5.84937]
[1741990733015,3.13041849,1926.7,1926.6,3.392]
[1741990735617,1.03807,1926.6,1926.5,3.389]
[1741990735818,2.47957,1926.6,1926.5,3.389]
[1741990739021,2.47957,1926.6,1926.5,4.42713]
[1741990739313,2.47957,1926.6,1926.5,5.86653]
[1741990739519,2.47957,1926.6,1926.5,4.8284]
[1741990740220,2.47957,1926.6,1926.5,5.86653]
[1741990740921,2.47957,1926.6,1926.5,4.8284]
[1741990741111,2.47957,1926.6,1926.5,5.86653]
[1741990741619,2.47957,1926.6,1926.5,4.8284]
[1741990741918,2.47957,1926.6,1926.5,5.86653]
[1741990742219,2.47957,1926.6,1926.5,4.8284]
[1741990742916,1.4415,1926.6,1926.5,5.86653]
[1741990743311,2.47957,1926.6,1926.5,5.86653]
[1741990744220,2.47957,1926.6,1926.5,4.8284]
[1741990744408,2.47957,1926.6,1926.5,3.389]
[1741990745222,1.03813,1926.5,1926.4,3.2078]
[1741990745419,2.46103,1926.5,1926.4,6.6048]
[1741990745617,2.46103,1926.5,1926.4,7.64298]
[1741990745817,2.46103,1926.5,1926.4,4.43518]
[1741990746424,2.46103,1926.5,1926.4,3.397]
[1741990747015,1.4229,1926.5,1926.4,7.64298]
[1741990747218,1.4229,1926.5,1926.4,9.06848]
[1741990747826,2.46103,1926.5,1926.4,9.06848]
[1741990748321,1.4229,1926.5,1926.4,9.06848]
[1741990750224,2.46103,1926.5,1926.4,9.06848]
[1741990751124,1.4229,1926.5,1926.4,9.06848]
[1741990751929,1.77224849,1926.7,1926.6,1.03807]
[1741990752127,3.09464849,1926.7,1926.6,1.03807]
[1741990752428,2.36824849,1926.7,1926.6,1.03807]
[1741990752622,2.36824849,1926.7,1926.6,3.14497]
[1741990753528,2.36824849,1926.7,1926.6,1.416]
[1741990754030,1.03813,1926.5,1926.4,7.64293]
[1741990755527,2.43413,1926.5,1926.4,9.00033]
[1741990756025,1.03812,1926.6,1926.5,1.0381]
[1741990756226,1.03812,1926.6,1926.5,2.3955]
[1741990756616,1.73322,1926.6,1926.5,2.3955]
[1741990757430,1.03813,1926.5,1926.4,6.6048]
[1741990757728,2.47023,1926.5,1926.4,7.64298]
[1741990757930,1.4321,1926.5,1926.4,7.64298]
[1741990758124,2.47023,1926.5,1926.4,7.64298]
[1741990758433,1.4321,1926.5,1926.4,7.64298]
[1741990758930,1.4321,1926.5,1926.4,8.96528]
[1741990759829,2.47023,1926.5,1926.4,8.96528]
[1741990761025,0.00779849,1926.7,1926.6,1.03807]
[1741990761224,1.38339849,1926.7,1926.5,3.12447]
[1741990761426,2.42141849,1926.7,1926.6,1.421]
[1741990761631,1.03813,1926.5,1926.4,7.64293]
[1741990761931,1.03813,1926.5,1926.4,1.421]
[1741990762133,1.03813,1926.5,1926.4,4.815]
[1741990762434,1.76773,1926.5,1926.4,6.6018]
[1741990762625,1.76773,1926.5,1926.4,3.394]
[1741990763226,1.76773,1926.5,1926.4,4.8393]
[1741990763430,1.76773,1926.5,1926.4,8.0471]
[1741990763732,1.76773,1926.5,1926.4,4.8393]
[1741990764329,1.76773,1926.5,1926.4,5.87748]
[1741990764529,1.76773,1926.5,1926.4,4.8393]
[1741990764935,1.76773,1926.5,1926.4,5.87748]
[1741990765337,1.76773,1926.5,1926.4,4.8393]
[1741990765537,1.76773,1926.5,1926.4,5.87748]
[1741990765741,1.76773,1926.5,1926.4,4.8393]
[1741990766331,1.76773,1926.5,1926.4,3.394]
[1741990766634,1.03818,1926.4,1926.3,2.43448]
[1741990766835,3.12818,1926.4,1926.3,4.7873]
[1741990767030,3.12818,1926.4,1926.3,5.82553]
[1741990767833,2.09,1926.4,1926.3,5.82553]
[1741990768031,2.09,1926.4,1926.3,5.82353]
[1741990768333,3.12818,1926.4,1926.3,6.48263]
[1741990769534,0.00779849,1926.7,1926.5,1.03807]
[1741990769834,0.00779849,1926.7,1926.3,6.48263]
[1741990769835,1.03813,1926.5,1926.4,5.69034]
[1741990770240,1.70523,1926.5,1926.4,1.4444]
[1741990770443,1.03818,1926.4,1926.3,3.389]
[1741990770628,1.03829,1926.2,1926.1,3.39]
[1741990771029,1.0384,1926.0,1925.8,3.21559849]
[1741990771228,1.0384,1926.0,1925.9,32.193]
[1741990771643,1.7644,1926.0,1925.9,30.2424]
[1741990773135,1.7644,1926.0,1925.9,31.28085]
[1741990773335,0.726,1926.0,1925.9,31.28085]
[1741990773735,2.1674,1926.0,1925.9,31.28085]
[1741990774350,5.974,1926.6,1926.2,1.03827]
[1741990774539,1.03827,1926.3,1926.1,7.64811]
[1741990775545,1.03827,1926.3,1926.2,1.03829]
[1741990775844,0.6974,1926.5,1926.4,1.03818]
[1741990776034,1.75201,1926.6,1926.4,1.03818]
[1741990776238,0.7139,1926.6,1926.5,1.03813]
[1741990776941,2.0427,1926.6,1926.5,2.37743]
[1741990777343,3.08077,1926.6,1926.5,2.37743]
[1741990778044,2.0427,1926.6,1926.5,4.5471]
[1741990778242,2.0427,1926.6,1926.5,5.58523]
[1741990778641,0.00779849,1926.7,1926.6,1.03807]
[1741990778844,1.42089849,1926.7,1926.6,2.43907]
[1741990779543,2.45891849,1926.7,1926.6,2.43907]
[1741990780247,2.45891849,1926.7,1926.6,1.401]
[1741990780545,1.03807,1926.6,1926.5,3.2078]
[1741990780747,2.45117,1926.6,1926.5,3.2078]
[1741990781043,2.45117,1926.6,1926.5,4.6088]
[1741990782233,1.4131,1926.6,1926.5,4.6088]
[1741990782437,1.4131,1926.6,1926.5,5.64693]
[1741990783345,2.45117,1926.6,1926.5,4.6088]
[1741990784239,2.45117,1926.6,1926.5,5.64693]
[1741990785854,1.4131,1926.6,1926.5,5.64693]
[1741990787950,2.45117,1926.6,1926.5,5.64693]
[1741990788862,1.4131,1926.6,1926.1,1.03833]
[1741990789158,1.03829,1926.2,1926.1,1.4465]
[1741990789455,1.03834,1926.1,1926.0,3.2078]
[1741990789755,1.0384,1926.0,1925.9,30.2445]
[1741990789947,1.724,1926.0,1925.9,32.2]
[1741990790147,3.1453,1926.0,1925.9,32.2]
[1741990791660,2.1069,1926.0,1925.9,33.23845]
[1741990791852,2.1069,1926.0,1925.9,34.67795]
[1741990792655,2.1069,1926.0,1925.9,37.88575]
[1741990793367,3.1453,1926.0,1925.9,37.88175]
[1741990793564,3.1453,1926.0,1925.9,36.8433]
[1741990794267,3.1453,1926.0,1925.9,33.6355]
[1741990795069,3.1453,1926.0,1925.9,34.67395]
[1741990795257,3.1453,1926.0,1925.9,37.88175]
[1741990795452,3.1453,1926.0,1925.9,36.8433]
[1741990796067,3.1453,1926.0,1925.9,37.88175]
[1741990796561,3.1453,1926.0,1925.9,34.48375]
[1741990796761,3.1453,1926.0,1925.9,37.87875]
[1741990797865,3.1453,1926.0,1925.9,36.8403]
[1741990798963,3.1453,1926.0,1925.9,37.87875]
[1741990799270,3.1453,1926.0,1925.9,34.48375]
[1741990799662,3.1453,1926.0,1925.9,33.4453]
[1741990800670,2.1069,1926.0,1925.9,34.48375]
[1741990802473,3.1453,1926.0,1925.9,34.48375]
[1741990802765,3.1453,1926.0,1925.9,33.4453]
[1741990802965,3.1453,1926.0,1925.9,34.48375]
[1741990803359,3.1453,1926.0,1925.9,33.4453]
[1741990803559,3.1453,1926.0,1925.9,32.0058]
[1741990804473,3.1453,1926.0,1925.9,28.798]
[1741990806169,2.4597,1926.0,1925.9,33.04425]
[1741990806373,2.4597,1926.0,1925.9,34.37835]
[1741990807374,2.4597,1926.0,1925.9,33.3399]
[1741990807574,2.4597,1926.0,1925.9,34.37835]
[1741990807975,2.4597,1926.0,1925.9,33.3399]
[1741990808769,2.4597,1926.0,1925.9,30.1321]
[1741990809277,2.4597,1926.0,1925.8,0.00779849]
[1741990809579,2.46365,1925.9,1925.8,0.00779849]
[1741990810273,1.03861,1925.6,1925.5,6.5998]
[1741990810466,1.03867,1925.5,1925.4,4.7826]
[1741990810671,2.46387,1925.5,1925.4,4.7826]
[1741990811274,2.46387,1925.5,1925.4,1.3906]
[1741990811470,2.46387,1925.5,1925.3,3.21559849]
[1741990811674,3.85182,1925.4,1925.3,0.00779849]
[1741990814572,3.85182,1925.4,1925.3,1.37049849]
[1741990817771,3.85182,1925.4,1925.3,0.00779849]
[1741990822681,1.03894,1925.0,1924.9,5.2764]
[1741990822986,1.03894,1925.0,1924.9,1.3763]
[1741990823683,3.19224,1925.0,1924.9,1.3763]
[1741990824283,1.03899,1924.9,1924.8,0.00779849]
[1741990824587,2.40539,1924.9,1924.8,0.00779849]
[1741990827283,2.40539,1924.9,1924.8,1.37999849]
[1741990827974,1.03886,1925.2,1924.8,3.97758849]
[1741990828180,1.3441,1925.2,1925.0,1.03894]
[1741990828484,1.3441,1925.2,1924.9,5.9572]
[1741990828684,1.0389,1925.1,1925.0,2.41109]
[1741990828982,2.38296,1925.2,1925.1,1.03888]
[1741990829285,2.38296,1925.2,1925.1,2.41108]
[1741990829680,2.38296,1925.2,1925.1,1.3722]
[1741990831385,2.38296,1925.2,1925.1,2.41108]
[1741990831586,2.38296,1925.2,1925.1,1.3722]
[1741990832688,9.8944,1925.5,1925.1,5.61888]
[1741990832888,3.2078,1925.5,1925.4,1.03872]
[1741990833186,3.2078,1925.5,1925.3,4.42373]
[1741990833382,4.24651,1925.5,1925.4,1.03872]
[1741990833582,1.04644849,1925.6,1925.5,1.03867]
[1741990833787,0.00779849,1925.6,1925.5,4.24647]
[1741990833988,1.04640849,1925.6,1925.5,4.24647]
[1741990834589,0.00779849,1925.6,1925.5,4.24647]
[1741990834887,1.04640849,1925.6,1925.5,4.24647]
[1741990835382,0.00779849,1925.6,1925.5,4.24647]
[1741990840990,1.36489849,1925.6,1925.5,4.24647]
[1741990841794,2.40350849,1925.6,1925.5,4.24647]
[1741990841990,1.03867,1925.5,1925.4,1.03868]
[1741990842192,1.03872,1925.4,1925.3,4.91734]
[1741990842495,1.69732,1925.4,1925.3,8.29837]
[1741990843393,2.39579,1925.5,1925.4,1.03872]
[1741990843995,1.3571,1925.5,1925.4,1.03872]
[1741990844795,2.39577,1925.5,1925.4,1.03872]
[1741990846491,1.3571,1925.5,1925.4,1.03872]
[1741990847896,2.39577,1925.5,1925.4,1.03872]
[1741990848793,1.03872,1925.4,1925.3,8.29834]
[1741990848992,1.03872,1925.4,1925.3,3.2078]
[1741990849586,1.03877,1925.3,1925.0,1.0389]
[1741990849793,1.03894,1925.0,1924.9,4.24675]
[1741990850001,1.03893,1925.1,1925.0,1.03893]
[1741990850196,2.45993,1925.1,1925.0,4.41493]
[1741990854006,2.45993,1925.1,1925.0,5.85723]
[1741990855508,1.421,1925.1,1925.0,5.85723]
[1741990856106,1.3664,1925.2,1925.1,1.03888]
[1741990856410,2.0151,1925.2,1925.1,5.58518]
[1741990856608,2.0151,1925.2,1925.1,3.2078]
[1741990856801,2.7433,1925.2,1925.1,3.2078]
[1741990857001,2.7433,1925.2,1925.1,5.58518]
[1741990857812,3.78213,1925.2,1925.1,5.58518]
[1741990858002,2.7433,1925.2,1925.1,5.58518]
[1741990858599,3.78213,1925.2,1925.1,5.58518]
[1741990858799,2.7433,1925.2,1925.1,5.58518]
[1741990859398,3.78213,1925.2,1925.1,5.58518]
[1741990859816,2.7433,1925.2,1925.1,5.58518]
[1741990861016,3.78213,1925.2,1925.1,5.58518]
[1741990861202,2.7433,1925.2,1925.1,5.58518]
[1741990861703,3.78213,1925.2,1925.1,5.58518]
[1741990861900,2.7433,1925.2,1925.1,5.58518]
[1741990862413,3.78213,1925.2,1925.1,5.58518]
[1741990863410,3.78213,1925.2,1925.1,4.5463]
[1741990863607,3.78213,1925.2,1925.1,5.58518]
[1741990864710,1.3141,1925.2,1925.1,5.58518]
[1741990865210,1.3141,1925.2,1925.1,6.29878]
[1741990868014,2.40474,1925.4,1925.3,1.03877]
[1741990868308,2.40474,1925.4,1925.3,7.61657]
[1741990868517,0.00779849,1925.6,1925.5,1.03867]
[1741990868708,0.6864,1925.8,1925.7,1.03856]
[1741990868908,0.6864,1925.8,1925.7,4.24636]
[1741990869305,0.6864,1925.8,1925.7,5.64026]
[1741990870205,2.06,1925.8,1925.7,5.64026]
[1741990870817,3.0985,1925.8,1925.7,5.64026]
[1741990872024,3.0985,1925.8,1925.7,6.5818]
[1741990872314,3.0985,1925.8,1925.7,7.62036]
[1741990872909,3.0985,1925.8,1925.7,6.5818]
[1741990873911,4.65629,1925.8,1925.4,1.03868]
[1741990874118,3.17679,1925.7,1925.6,1.03858]
[1741990874413,3.17679,1925.7,1925.6,2.44768]
[1741990874923,0.00779849,1925.9,1925.8,1.0385]
[1741990875920,1.04624849,1925.9,1925.8,1.0385]
[1741990876314,3.13814849,1925.9,1925.8,2.3923]
[1741990876615,1.0385,1925.8,1925.7,4.42855]
[1741990876815,2.4097,1925.8,1925.7,4.42855]
[1741990877016,2.4097,1925.8,1925.7,3.39]
[1741990877514,3.96748,1925.8,1925.3,3.925]
[1741990877818,0.72849849,1925.9,1925.6,1.03861]
[1741990877819,3.10869,1925.7,1925.6,1.03861]
[1741990878020,1.03861,1925.6,1925.5,5.60022]
[1741990878216,2.40981,1925.6,1925.5,5.60022]
[1741990878618,2.40981,1925.6,1925.4,1.0387]
[1741990878619,1.0387,1925.5,1925.4,1.0387]
[1741990878812,2.0926,1925.5,1925.4,5.7805]
[1741990880419,0.6989,1925.7,1925.6,1.03861]
[1741990880624,1.73746,1925.7,1925.6,1.03861]
[1741990881114,3.16146,1925.7,1925.6,2.42061]
[1741990884320,1.424,1925.7,1925.6,5.62841]
[1741990887227,0.00779849,1925.9,1925.8,1.0385]
[1741990887428,1.34499849,1925.9,1925.8,7.6263]
[1741990887629,1.34499849,1925.9,1925.8,9.0297]
[1741990889026,0.00779849,1925.9,1925.8,9.0297]
[1741990899041,0.00779849,1925.9,1925.8,4.4055]
[1741990899042,1.04624849,1925.9,1925.8,4.4055]
[1741990899244,1.70454849,1925.9,1925.8,7.6133]
[1741990904253,1.70454849,1925.9,1925.8,6.5748]
[1741990904654,1.70454849,1925.9,1925.8,7.6133]
[1741990906351,1.03858,1925.7,1925.6,3.2078]
[1741990906554,1.03858,1925.7,1925.6,6.5678]
[1741990907051,2.38038,1925.7,1925.6,6.5678]
[1741990907853,2.38038,1925.7,1925.6,7.60641]
[1741990909951,2.38038,1925.7,1925.6,4.24641]
[1741990910152,2.38038,1925.7,1925.6,7.60641]
[1741990912264,1.3418,1925.7,1925.6,7.60641]
[1741990912763,0.00779849,1925.9,1925.8,1.0385]
[1741990912963,0.00779849,1925.9,1925.8,4.2463]
[1741990913158,1.3953,1926.0,1925.9,1.03845]
[1741990913366,1.3953,1926.0,1925.9,5.84595]
[1741990916967,2.4337,1926.0,1925.9,5.84595]
[1741990917164,1.3953,1926.0,1925.9,5.84595]
[1741990918159,2.4337,1926.0,1925.9,5.84595]
[1741990918968,1.03845,1925.9,1925.8,4.24627]
[1741990919171,1.0385,1925.8,1925.7,2.48701]
[1741990919370,1.7218,1925.8,1925.7,5.84601]
[1741990919569,3.1262,1925.8,1925.7,5.84601]
[1741990921363,2.0877,1925.8,1925.7,5.84601]
[1741990921562,3.1262,1925.8,1925.7,5.84601]
[1741990922975,2.0877,1925.8,1925.7,5.84601]
[1741990924767,1.04619849,1926.1,1926.0,1.0384]
[1741990924973,1.04619849,1926.1,1926.0,4.3974]
[1741990925174,0.00779849,1926.1,1926.0,4.3974]
[1741990925983,1.04613849,1926.1,1926.0,5.7337]
[1741990926171,1.36039849,1926.1,1926.0,5.7337]
[1741990926869,0.00779849,1926.1,1926.0,5.7337]
[1741990927282,1.36039849,1926.1,1926.0,5.7337]
[1741990928079,2.39873849,1926.1,1926.0,5.7337]
[1741990928373,3.10813849,1926.1,1926.0,5.7337]
[1741990928977,2.06979849,1926.1,1926.0,5.7337]
[1741990930680,3.10813849,1926.1,1926.0,5.7337]
[1741990930983,3.10813849,1926.1,1926.0,2.3747]
[1741990931174,3.10813849,1926.1,1926.0,5.7337]
[1741990931675,1.36039849,1926.1,1926.0,5.7337]